[Event "Titled Tuesday Blitz January 17 Late 2023"]
[White "Sowa, Ryan"]
[Black "Vaglio Munoz, Jaime"]
[WhiteFideId "30901693"]
[BlackFideId "6500145"]
[WhiteElo "2073"]
[BlackElo "2174"]
[Result "1/2-1/2"]
[Round "04"]
[TimeControl "180+2"]
[Date "2023.01.17"]
[WhiteClock "0:00:09"]
[BlackClock "0:00:15"]

1. Nf3 {[%clk 0:03:00]}  c6 {[%clk 0:02:59]} 2. b3 {[%clk 0:03:00]}  d5 {[%clk 0:02:57]} 3. Bb2 {[%clk 0:03:01]}  Bf5 {[%clk 0:02:57]} 4. g3 {[%clk 0:02:51]}  Nd7 {[%clk 0:02:55]} 5. Bg2 {[%clk 0:02:50]}  Qc7 {[%clk 0:02:56]} 6. d4 {[%clk 0:02:49]}  h6 {[%clk 0:02:54]} 7. O-O {[%clk 0:02:41]}  Ngf6 {[%clk 0:02:53]} 8. c4 {[%clk 0:02:41]}  e6 {[%clk 0:02:53]} 9. Nc3 {[%clk 0:02:34]}  Be7 {[%clk 0:02:52]} 10. Rc1 {[%clk 0:02:34]}  O-O {[%clk 0:02:50]} 11. Ne5 {[%clk 0:02:34]}  Qa5 {[%clk 0:02:39]} 12. a3 {[%clk 0:02:17]}  Rfc8 {[%clk 0:02:36]} 13. b4 {[%clk 0:02:15]}  Qd8 {[%clk 0:02:35]} 14. Nxd7 {[%clk 0:01:54]}  Qxd7 {[%clk 0:02:34]} 15. Qb3 {[%clk 0:01:54]}  b5 {[%clk 0:02:25]} 16. c5 {[%clk 0:01:50]}  a5 {[%clk 0:02:25]} 17. Ra1 {[%clk 0:01:46]}  Ra6 {[%clk 0:02:16]} 18. a4 {[%clk 0:01:39]}  axb4 {[%clk 0:02:05]} 19. Qxb4 {[%clk 0:01:39]}  bxa4 {[%clk 0:01:54]} 20. Nxa4 {[%clk 0:01:39]}  Qa7 {[%clk 0:01:13]} 21. Nb6 {[%clk 0:01:37]}  Rb8 {[%clk 0:01:13]} 22. Qd2 {[%clk 0:01:20]}  Ne4 {[%clk 0:01:04]} 23. Qe3 {[%clk 0:01:20]}  Bg5 {[%clk 0:01:02]} 24. f4 {[%clk 0:01:17]}  Bd8 {[%clk 0:01:01]} 25. Rxa6 {[%clk 0:01:02]}  Qxa6 {[%clk 0:01:02]} 26. Ra1 {[%clk 0:01:02]}  Qb5 {[%clk 0:01:00]} 27. Bc1 {[%clk 0:00:45]}  Bxb6 {[%clk 0:00:59]} 28. cxb6 {[%clk 0:00:46]}  Qxb6 {[%clk 0:00:58]} 29. h3 {[%clk 0:00:47]}  Bg6 {[%clk 0:00:57]} 30. g4 {[%clk 0:00:47]}  Qb3 {[%clk 0:00:52]} 31. Ra6 {[%clk 0:00:41]}  Qc2 {[%clk 0:00:50]} 32. Ra1 {[%clk 0:00:34]}  Rb1 {[%clk 0:00:48]} 33. Rxb1 {[%clk 0:00:34]}  Qxb1 {[%clk 0:00:49]} 34. Kh2 {[%clk 0:00:34]}  f5 {[%clk 0:00:47]} 35. Bf3 {[%clk 0:00:33]}  Qc2 {[%clk 0:00:45]} 36. Ba3 {[%clk 0:00:29]}  Qc3 {[%clk 0:00:28]} 37. Qxc3 {[%clk 0:00:27]}  Nxc3 {[%clk 0:00:29]} 38. Bd6 {[%clk 0:00:19]}  Be8 {[%clk 0:00:28]} 39. Kg3 {[%clk 0:00:18]}  Kf7 {[%clk 0:00:27]} 40. Be5 {[%clk 0:00:18]}  Bd7 {[%clk 0:00:27]} 41. Kf2 {[%clk 0:00:14]}  Bc8 {[%clk 0:00:27]} 42. Ke3 {[%clk 0:00:13]}  Ba6 {[%clk 0:00:27]} 43. Kd2 {[%clk 0:00:14]}  Ne4+ {[%clk 0:00:19]} 44. Bxe4 {[%clk 0:00:10]}  dxe4 {[%clk 0:00:18]} 45. Ke3 {[%clk 0:00:09]}  Bc4 {[%clk 0:00:17]} 46. Kf2 {[%clk 0:00:09]}  Bd5 {[%clk 0:00:17]} 47. e3 {[%clk 0:00:09]}  g5 {[%clk 0:00:15]} 48. Kg3 {[%clk 0:00:09]}  Kg6 {[%clk 0:00:15]} 49. Bd6 {[%clk 0:00:09]}  Bc4 {[%clk 0:00:14]} 50. Be5 {[%clk 0:00:09]}  Bd5 {[%clk 0:00:15]} 1/2-1/2


[Site "https://www.chess.com"]

[Event "Titled Tuesday Blitz January 17 Late 2023"]
[White "Artemenko, Oleg"]
[Black "Chernomordik, Pavel"]
[WhiteFideId "14201798"]
[BlackFideId "2804530"]
[WhiteElo "2246"]
[BlackElo "2150"]
[Result "0-1"]
[Round "04"]
[TimeControl "180+2"]
[Date "2023.01.17"]
[WhiteClock "0:00:02"]
[BlackClock "0:01:45"]

1. e4 {[%clk 0:02:14]}  g6 {[%clk 0:02:57]} 2. Nf3 {[%clk 0:02:14]}  Bg7 {[%clk 0:02:57]} 3. d4 {[%clk 0:02:12]}  d6 {[%clk 0:02:57]} 4. Nc3 {[%clk 0:02:11]}  a6 {[%clk 0:02:56]} 5. Be3 {[%clk 0:02:09]}  b5 {[%clk 0:02:56]} 6. a3 {[%clk 0:02:09]}  Bb7 {[%clk 0:02:55]} 7. Qd2 {[%clk 0:02:08]}  Nd7 {[%clk 0:02:55]} 8. h4 {[%clk 0:02:06]}  h6 {[%clk 0:02:54]} 9. g3 {[%clk 0:02:00]}  c5 {[%clk 0:02:53]} 10. Bh3 {[%clk 0:01:52]}  Ngf6 {[%clk 0:02:44]} 11. O-O-O {[%clk 0:00:36]}  Nxe4 {[%clk 0:02:40]} 12. Nxe4 {[%clk 0:00:35]}  Bxe4 {[%clk 0:02:40]} 13. Bg2 {[%clk 0:00:34]}  Qc7 {[%clk 0:02:33]} 14. Kb1 {[%clk 0:00:27]}  Rc8 {[%clk 0:02:31]} 15. Ka1 {[%clk 0:00:23]}  Nb6 {[%clk 0:02:25]} 16. Qa5 {[%clk 0:00:15]}  O-O {[%clk 0:02:15]} 17. h5 {[%clk 0:00:14]}  Nc4 {[%clk 0:02:07]} 18. Qxc7 {[%clk 0:00:13]}  Rxc7 {[%clk 0:02:07]} 19. c3 {[%clk 0:00:13]}  b4 {[%clk 0:02:03]} 20. axb4 {[%clk 0:00:09]}  cxb4 {[%clk 0:02:02]} 21. Rhe1 {[%clk 0:00:05]}  bxc3 {[%clk 0:02:00]} 22. bxc3 {[%clk 0:00:05]}  Na3 {[%clk 0:01:49]} 23. Re2 {[%clk 0:00:02]}  Rxc3 {[%clk 0:01:45]} 0-1


[Site "https://www.chess.com"]

[Event "Titled Tuesday Blitz January 17 Late 2023"]
[White "Mirzoev, Azer"]
[Black "Lacasa Diaz, Jose Antonio"]
[WhiteFideId "13400304"]
[BlackFideId "2203375"]
[WhiteElo "2416"]
[BlackElo "2359"]
[Result "1/2-1/2"]
[Round "04"]
[TimeControl "180+2"]
[Date "2023.01.17"]
[WhiteClock "0:00:33"]
[BlackClock "0:00:12"]

1. c4 {[%clk 0:02:59]}  e6 {[%clk 0:02:59]} 2. Nf3 {[%clk 0:02:57]}  d5 {[%clk 0:02:58]} 3. b3 {[%clk 0:02:57]}  c5 {[%clk 0:02:58]} 4. e3 {[%clk 0:02:57]}  Nc6 {[%clk 0:02:58]} 5. Bb2 {[%clk 0:02:55]}  Nf6 {[%clk 0:02:58]} 6. cxd5 {[%clk 0:02:53]}  exd5 {[%clk 0:02:57]} 7. Bb5 {[%clk 0:02:52]}  Bd6 {[%clk 0:02:56]} 8. O-O {[%clk 0:02:49]}  O-O {[%clk 0:02:55]} 9. d4 {[%clk 0:02:49]}  cxd4 {[%clk 0:02:55]} 10. Nxd4 {[%clk 0:02:48]}  Bd7 {[%clk 0:02:55]} 11. Bxc6 {[%clk 0:02:47]}  bxc6 {[%clk 0:02:54]} 12. Nd2 {[%clk 0:02:47]}  Qe7 {[%clk 0:02:46]} 13. N4f3 {[%clk 0:02:40]}  Rac8 {[%clk 0:02:43]} 14. Qc2 {[%clk 0:02:35]}  Rfe8 {[%clk 0:02:40]} 15. Rad1 {[%clk 0:02:31]}  c5 {[%clk 0:02:21]} 16. Rfe1 {[%clk 0:02:30]}  Ne4 {[%clk 0:02:07]} 17. Nxe4 {[%clk 0:02:28]}  dxe4 {[%clk 0:02:06]} 18. Nd2 {[%clk 0:02:16]}  Bf5 {[%clk 0:02:02]} 19. Nf1 {[%clk 0:02:10]}  c4 {[%clk 0:01:49]} 20. bxc4 {[%clk 0:01:28]}  Bb4 {[%clk 0:01:46]} 21. Nd2 {[%clk 0:01:26]}  Red8 {[%clk 0:01:33]} 22. Bd4 {[%clk 0:01:21]}  Qg5 {[%clk 0:01:09]} 23. Rb1 {[%clk 0:00:41]}  Bxd2 {[%clk 0:00:22]} 24. Qxd2 {[%clk 0:00:40]}  Bh3 {[%clk 0:00:22]} 25. g3 {[%clk 0:00:38]}  Qh5 {[%clk 0:00:21]} 26. Qe2 {[%clk 0:00:36]}  Bg4 {[%clk 0:00:21]} 27. Qf1 {[%clk 0:00:34]}  Bh3 {[%clk 0:00:21]} 28. Qe2 {[%clk 0:00:34]}  Bg4 {[%clk 0:00:22]} 29. Qf1 {[%clk 0:00:34]}  Bh3 {[%clk 0:00:12]} 30. Qe2 {[%clk 0:00:33]} 1/2-1/2


[Site "https://www.chess.com"]

[Event "Titled Tuesday Blitz January 17 Late 2023"]
[White "Kleiman, Jake"]
[Black "Dudzinski, Pawel"]
[WhiteFideId "2020041"]
[BlackFideId "1117890"]
[WhiteElo "2399"]
[BlackElo "2186"]
[Result "1-0"]
[Round "04"]
[TimeControl "180+2"]
[Date "2023.01.17"]
[WhiteClock "0:00:35"]
[BlackClock "0:00:22"]

1. d4 {[%clk 0:02:53]}  d5 {[%clk 0:02:37]} 2. c4 {[%clk 0:02:47]}  c6 {[%clk 0:02:38]} 3. Nf3 {[%clk 0:02:47]}  e6 {[%clk 0:02:38]} 4. Qc2 {[%clk 0:02:47]}  f5 {[%clk 0:02:38]} 5. g3 {[%clk 0:02:46]}  Nf6 {[%clk 0:02:39]} 6. Bg2 {[%clk 0:02:47]}  Be7 {[%clk 0:02:39]} 7. O-O {[%clk 0:02:47]}  O-O {[%clk 0:02:40]} 8. b3 {[%clk 0:02:48]}  Bd7 {[%clk 0:02:40]} 9. Ba3 {[%clk 0:02:48]}  Be8 {[%clk 0:02:40]} 10. Bxe7 {[%clk 0:02:48]}  Qxe7 {[%clk 0:02:41]} 11. Nc3 {[%clk 0:02:45]}  Nbd7 {[%clk 0:02:40]} 12. e3 {[%clk 0:02:42]}  Bh5 {[%clk 0:02:38]} 13. Ne1 {[%clk 0:02:35]}  Ne4 {[%clk 0:02:38]} 14. Nd3 {[%clk 0:02:35]}  g5 {[%clk 0:02:35]} 15. f3 {[%clk 0:02:33]}  Nxc3 {[%clk 0:02:33]} 16. Qxc3 {[%clk 0:02:34]}  g4 {[%clk 0:02:30]} 17. f4 {[%clk 0:02:17]}  Rfc8 {[%clk 0:02:22]} 18. c5 {[%clk 0:02:12]}  b6 {[%clk 0:02:19]} 19. b4 {[%clk 0:02:12]}  a5 {[%clk 0:02:17]} 20. a3 {[%clk 0:02:12]}  b5 {[%clk 0:01:25]} 21. bxa5 {[%clk 0:02:11]}  Qd8 {[%clk 0:01:25]} 22. a4 {[%clk 0:01:59]}  Rxa5 {[%clk 0:01:18]} 23. axb5 {[%clk 0:01:57]}  Rxb5 {[%clk 0:01:19]} 24. Ra6 {[%clk 0:01:51]}  Be8 {[%clk 0:01:14]} 25. Rfa1 {[%clk 0:01:51]}  Rcb8 {[%clk 0:01:12]} 26. R6a3 {[%clk 0:01:28]}  Qc7 {[%clk 0:01:03]} 27. Bf1 {[%clk 0:01:28]}  Rb1 {[%clk 0:01:00]} 28. Ra7 {[%clk 0:01:20]}  R8b7 {[%clk 0:00:54]} 29. Rxb7 {[%clk 0:01:13]}  Qxb7 {[%clk 0:00:55]} 30. Rxb1 {[%clk 0:01:01]}  Qxb1 {[%clk 0:00:56]} 31. Qa5 {[%clk 0:00:57]}  Nf6 {[%clk 0:00:51]} 32. Qd8 {[%clk 0:00:54]}  Kg7 {[%clk 0:00:48]} 33. Qe7+ {[%clk 0:00:53]}  Bf7 {[%clk 0:00:37]} 34. Ne5 {[%clk 0:00:53]}  Ne4 {[%clk 0:00:33]} 35. Qxf7+ {[%clk 0:00:52]}  Kh6 {[%clk 0:00:33]} 36. Qf8+ {[%clk 0:00:49]}  Kh5 {[%clk 0:00:32]} 37. Qe8+ {[%clk 0:00:48]}  Kh6 {[%clk 0:00:32]} 38. Qxe6+ {[%clk 0:00:48]}  Kg7 {[%clk 0:00:31]} 39. Qf7+ {[%clk 0:00:47]}  Kh6 {[%clk 0:00:30]} 40. Qf8+ {[%clk 0:00:47]}  Kh5 {[%clk 0:00:30]} 41. Qxf5+ {[%clk 0:00:47]}  Kh6 {[%clk 0:00:30]} 42. Qe6+ {[%clk 0:00:42]}  Kg7 {[%clk 0:00:28]} 43. Qxg4+ {[%clk 0:00:41]}  Kf8 {[%clk 0:00:27]} 44. Qc8+ {[%clk 0:00:40]}  Kg7 {[%clk 0:00:28]} 45. Qd7+ {[%clk 0:00:40]}  Kh6 {[%clk 0:00:27]} 46. Qxc6+ {[%clk 0:00:40]}  Kh5 {[%clk 0:00:28]} 47. Qxd5 {[%clk 0:00:38]}  Qc2 {[%clk 0:00:27]} 48. Qf7+ {[%clk 0:00:33]}  Kh6 {[%clk 0:00:26]} 49. Qf8+ {[%clk 0:00:33]}  Kh5 {[%clk 0:00:26]} 50. g4+ {[%clk 0:00:34]}  Kh4 {[%clk 0:00:22]} 51. Qh6# {[%clk 0:00:35]} 1-0


[Site "https://www.chess.com"]

[Event "Titled Tuesday Blitz January 17 Late 2023"]
[White "Gurevich, Dmitry"]
[Black "Flores Quillas, Diego Saul Rodri"]
[WhiteFideId "2000407"]
[BlackFideId "3822508"]
[WhiteElo "2393"]
[BlackElo "2359"]
[Result "0-1"]
[Round "04"]
[TimeControl "180+2"]
[Date "2023.01.17"]
[WhiteClock "0:00:05"]
[BlackClock "0:00:30"]

1. d4 {[%clk 0:03:00]}  Nf6 {[%clk 0:02:57]} 2. c4 {[%clk 0:03:00]}  e6 {[%clk 0:02:58]} 3. Nc3 {[%clk 0:03:00]}  Bb4 {[%clk 0:02:58]} 4. a3 {[%clk 0:03:00]}  Bxc3+ {[%clk 0:02:57]} 5. bxc3 {[%clk 0:03:01]}  c5 {[%clk 0:02:53]} 6. e3 {[%clk 0:03:01]}  O-O {[%clk 0:02:51]} 7. Bd3 {[%clk 0:03:01]}  b6 {[%clk 0:02:51]} 8. Ne2 {[%clk 0:02:53]}  Bb7 {[%clk 0:02:49]} 9. O-O {[%clk 0:02:52]}  Nc6 {[%clk 0:02:48]} 10. f3 {[%clk 0:02:51]}  Ne8 {[%clk 0:02:42]} 11. e4 {[%clk 0:02:48]}  f5 {[%clk 0:02:42]} 12. exf5 {[%clk 0:02:36]}  exf5 {[%clk 0:02:42]} 13. Bf4 {[%clk 0:02:37]}  Qf6 {[%clk 0:02:38]} 14. d5 {[%clk 0:02:25]}  Na5 {[%clk 0:02:37]} 15. Ng3 {[%clk 0:02:15]}  g6 {[%clk 0:02:33]} 16. Qe1 {[%clk 0:02:00]}  Nd6 {[%clk 0:02:24]} 17. Be5 {[%clk 0:01:52]}  Qe7 {[%clk 0:02:23]} 18. Qe2 {[%clk 0:01:39]}  Rae8 {[%clk 0:01:41]} 19. f4 {[%clk 0:01:33]}  Nf7 {[%clk 0:01:37]} 20. Bxf5 {[%clk 0:01:19]}  Nxe5 {[%clk 0:01:35]} 21. fxe5 {[%clk 0:01:18]}  gxf5 {[%clk 0:01:35]} 22. Nxf5 {[%clk 0:01:14]}  Qxe5 {[%clk 0:01:32]} 23. Qg4+ {[%clk 0:01:04]}  Kh8 {[%clk 0:01:30]} 24. Rae1 {[%clk 0:00:57]}  Qf6 {[%clk 0:00:51]} 25. Rxe8 {[%clk 0:00:41]}  Rxe8 {[%clk 0:00:52]} 26. Ng3 {[%clk 0:00:32]}  Qg7 {[%clk 0:00:49]} 27. Qf4 {[%clk 0:00:30]}  Ba6 {[%clk 0:00:45]} 28. Nf5 {[%clk 0:00:22]}  Qf6 {[%clk 0:00:42]} 29. Qg4 {[%clk 0:00:17]}  Rg8 {[%clk 0:00:40]} 30. Qh5 {[%clk 0:00:14]}  Bxc4 {[%clk 0:00:40]} 31. Rf4 {[%clk 0:00:11]}  Bd3 {[%clk 0:00:35]} 32. g4 {[%clk 0:00:06]}  Bxf5 {[%clk 0:00:31]} 33. Rxf5 {[%clk 0:00:05]}  Qg6 {[%clk 0:00:30]} 34. Qh4 {[%clk 0:00:05]}  Qxg4+ {[%clk 0:00:30]} 0-1


[Site "https://www.chess.com"]

[Event "Titled Tuesday Blitz January 17 Late 2023"]
[White "Besedes, Danilo"]
[Black "Rosen, Eric"]
[WhiteFideId "946796"]
[BlackFideId "2032562"]
[WhiteElo "2297"]
[BlackElo "2349"]
[Result "0-1"]
[Round "04"]
[TimeControl "180+2"]
[Date "2023.01.17"]
[WhiteClock "0:01:06"]
[BlackClock "0:00:05"]

1. g3 {[%clk 0:02:59]}  d5 {[%clk 0:02:57]} 2. Bg2 {[%clk 0:03:00]}  Nf6 {[%clk 0:02:57]} 3. Nf3 {[%clk 0:03:00]}  e6 {[%clk 0:02:57]} 4. O-O {[%clk 0:03:00]}  Be7 {[%clk 0:02:57]} 5. c4 {[%clk 0:02:59]}  d4 {[%clk 0:02:51]} 6. b4 {[%clk 0:02:57]}  c5 {[%clk 0:02:42]} 7. bxc5 {[%clk 0:02:55]}  Nc6 {[%clk 0:02:42]} 8. d3 {[%clk 0:02:54]}  e5 {[%clk 0:02:38]} 9. e3 {[%clk 0:02:51]}  O-O {[%clk 0:02:38]} 10. exd4 {[%clk 0:02:51]}  exd4 {[%clk 0:02:37]} 11. Nbd2 {[%clk 0:02:50]}  a5 {[%clk 0:02:31]} 12. Ng5 {[%clk 0:02:42]}  Bxc5 {[%clk 0:02:27]} 13. Nge4 {[%clk 0:02:42]}  Nxe4 {[%clk 0:02:22]} 14. Nxe4 {[%clk 0:02:40]}  Be7 {[%clk 0:02:22]} 15. Rb1 {[%clk 0:02:36]}  f5 {[%clk 0:01:39]} 16. Nd2 {[%clk 0:02:24]}  Kh8 {[%clk 0:01:39]} 17. a3 {[%clk 0:02:22]}  Bf6 {[%clk 0:01:35]} 18. Re1 {[%clk 0:02:19]}  Qd6 {[%clk 0:01:34]} 19. Nf3 {[%clk 0:02:17]}  a4 {[%clk 0:01:26]} 20. Rb5 {[%clk 0:02:12]}  Bd7 {[%clk 0:01:15]} 21. Rxb7 {[%clk 0:02:08]}  Na5 {[%clk 0:01:15]} 22. Rb1 {[%clk 0:02:00]}  Nb3 {[%clk 0:01:13]} 23. Nd2 {[%clk 0:01:59]}  Nxc1 {[%clk 0:00:53]} 24. Qxc1 {[%clk 0:02:00]}  Rab8 {[%clk 0:00:51]} 25. c5 {[%clk 0:01:52]}  Qc7 {[%clk 0:00:46]} 26. c6 {[%clk 0:01:49]}  Rxb1 {[%clk 0:00:39]} 27. Qxb1 {[%clk 0:01:46]}  Rb8 {[%clk 0:00:27]} 28. Qc2 {[%clk 0:01:42]}  h6 {[%clk 0:00:20]} 29. Qxa4 {[%clk 0:01:40]}  Be8 {[%clk 0:00:19]} 30. Nc4 {[%clk 0:01:35]}  Rc8 {[%clk 0:00:14]} 31. Qb5 {[%clk 0:01:20]}  Bxc6 {[%clk 0:00:12]} 32. Bxc6 {[%clk 0:01:20]}  Qxc6 {[%clk 0:00:13]} 33. Qxf5 {[%clk 0:01:20]}  Rf8 {[%clk 0:00:09]} 34. Qe4 {[%clk 0:01:20]}  Qc5 {[%clk 0:00:07]} 35. Kg2 {[%clk 0:01:20]}  Qh5 {[%clk 0:00:06]} 36. a4 {[%clk 0:01:18]}  Bd8 {[%clk 0:00:06]} 37. a5 {[%clk 0:01:17]}  Bxa5 {[%clk 0:00:06]} 38. Qxd4 {[%clk 0:01:06]}  Bxe1 {[%clk 0:00:05]} 0-1


[Site "https://www.chess.com"]

[Event "Titled Tuesday Blitz January 17 Late 2023"]
[White "Novikova, Galina"]
[Black "Olafsson, Helgi"]
[WhiteFideId "4157095"]
[BlackFideId "2300010"]
[WhiteElo "2073"]
[BlackElo "2491"]
[Result "0-1"]
[Round "04"]
[TimeControl "180+2"]
[Date "2023.01.17"]
[WhiteClock "0:00:55"]
[BlackClock "0:01:02"]

1. e4 {[%clk 0:03:00]}  c5 {[%clk 0:02:59]} 2. Nf3 {[%clk 0:03:01]}  e6 {[%clk 0:03:00]} 3. b4 {[%clk 0:03:00]}  cxb4 {[%clk 0:02:59]} 4. a3 {[%clk 0:03:01]}  Nc6 {[%clk 0:02:55]} 5. axb4 {[%clk 0:03:00]}  Bxb4 {[%clk 0:02:56]} 6. c3 {[%clk 0:03:01]}  Bf8 {[%clk 0:02:55]} 7. d4 {[%clk 0:03:02]}  d5 {[%clk 0:02:55]} 8. e5 {[%clk 0:03:03]}  Nge7 {[%clk 0:02:55]} 9. Bd3 {[%clk 0:03:04]}  Bd7 {[%clk 0:02:50]} 10. O-O {[%clk 0:03:04]}  Rc8 {[%clk 0:02:49]} 11. Na3 {[%clk 0:03:05]}  a6 {[%clk 0:02:48]} 12. Bd2 {[%clk 0:03:00]}  Nf5 {[%clk 0:02:37]} 13. Nc2 {[%clk 0:02:58]}  Be7 {[%clk 0:02:35]} 14. Ne3 {[%clk 0:02:59]}  Nxe3 {[%clk 0:02:33]} 15. Bxe3 {[%clk 0:03:00]}  Na5 {[%clk 0:02:31]} 16. Bd2 {[%clk 0:02:32]}  Nc4 {[%clk 0:02:29]} 17. Be1 {[%clk 0:02:27]}  Nb2 {[%clk 0:02:28]} 18. Qe2 {[%clk 0:02:27]}  Nxd3 {[%clk 0:02:29]} 19. Qxd3 {[%clk 0:02:27]}  Bb5 {[%clk 0:02:28]} 20. Qe3 {[%clk 0:02:27]}  Bxf1 {[%clk 0:02:26]} 21. Kxf1 {[%clk 0:02:28]}  O-O {[%clk 0:02:24]} 22. Kg1 {[%clk 0:02:28]}  Rc6 {[%clk 0:02:19]} 23. g3 {[%clk 0:02:23]}  b5 {[%clk 0:02:18]} 24. h4 {[%clk 0:02:22]}  a5 {[%clk 0:02:10]} 25. Kg2 {[%clk 0:02:21]}  a4 {[%clk 0:02:10]} 26. Bd2 {[%clk 0:02:20]}  Qc7 {[%clk 0:02:06]} 27. h5 {[%clk 0:02:20]}  Rc8 {[%clk 0:02:02]} 28. h6 {[%clk 0:02:20]}  g6 {[%clk 0:02:03]} 29. Nh2 {[%clk 0:02:01]}  Rxc3 {[%clk 0:02:00]} 30. Bxc3 {[%clk 0:01:59]}  Qxc3 {[%clk 0:01:59]} 31. Qe1 {[%clk 0:01:59]}  Qxe1 {[%clk 0:01:58]} 32. Rxe1 {[%clk 0:02:00]}  b4 {[%clk 0:01:57]} 33. Nf3 {[%clk 0:01:58]}  b3 {[%clk 0:01:56]} 34. Rb1 {[%clk 0:01:56]}  Rc2 {[%clk 0:01:47]} 35. Ne1 {[%clk 0:01:55]}  Rd2 {[%clk 0:01:41]} 36. Nf3 {[%clk 0:01:55]}  Ra2 {[%clk 0:01:40]} 37. Ne1 {[%clk 0:01:52]}  Kf8 {[%clk 0:01:23]} 38. Kf3 {[%clk 0:01:47]}  Ke8 {[%clk 0:01:22]} 39. Ke3 {[%clk 0:01:47]}  Bg5+ {[%clk 0:01:20]} 40. f4 {[%clk 0:01:46]}  Bxh6 {[%clk 0:01:20]} 41. Nd3 {[%clk 0:01:46]}  Bf8 {[%clk 0:01:17]} 42. g4 {[%clk 0:01:39]}  Be7 {[%clk 0:01:14]} 43. Kf3 {[%clk 0:01:20]}  h5 {[%clk 0:01:12]} 44. gxh5 {[%clk 0:01:19]}  gxh5 {[%clk 0:01:12]} 45. Ke3 {[%clk 0:01:20]}  Kd7 {[%clk 0:01:12]} 46. Rh1 {[%clk 0:01:07]}  b2 {[%clk 0:01:10]} 47. Rb1 {[%clk 0:01:04]}  a3 {[%clk 0:01:09]} 48. Kd2 {[%clk 0:01:05]}  Ra1 {[%clk 0:01:06]} 49. Kc2 {[%clk 0:01:04]}  h4 {[%clk 0:01:06]} 50. Nf2 {[%clk 0:01:01]}  Kc6 {[%clk 0:01:03]} 51. Nh3 {[%clk 0:00:57]}  Kb5 {[%clk 0:01:03]} 52. Nf2 {[%clk 0:00:55]}  Kc4 {[%clk 0:01:02]} 0-1


[Site "https://www.chess.com"]

[Event "Titled Tuesday Blitz January 17 Late 2023"]
[White "Odegov, Artem"]
[Black "Figorito, Nick"]
[WhiteFideId "34183644"]
[BlackFideId "30923689"]
[WhiteElo "2261"]
[BlackElo "2036"]
[Result "0-1"]
[Round "04"]
[TimeControl "180+2"]
[Date "2023.01.17"]
[WhiteClock "0:01:12"]
[BlackClock "0:01:15"]

1. e4 {[%clk 0:03:00]}  e6 {[%clk 0:02:59]} 2. d4 {[%clk 0:03:00]}  d5 {[%clk 0:03:00]} 3. Nc3 {[%clk 0:03:00]}  Bb4 {[%clk 0:03:00]} 4. e5 {[%clk 0:02:56]}  c5 {[%clk 0:03:00]} 5. Bd2 {[%clk 0:02:56]}  Ne7 {[%clk 0:03:00]} 6. Nb5 {[%clk 0:02:51]}  Bxd2+ {[%clk 0:03:01]} 7. Qxd2 {[%clk 0:02:51]}  O-O {[%clk 0:03:01]} 8. dxc5 {[%clk 0:02:51]}  Nbc6 {[%clk 0:03:00]} 9. f4 {[%clk 0:02:51]}  f6 {[%clk 0:02:44]} 10. Nf3 {[%clk 0:02:47]}  fxe5 {[%clk 0:02:44]} 11. fxe5 {[%clk 0:02:48]}  Ng6 {[%clk 0:02:36]} 12. Qc3 {[%clk 0:02:34]}  Rxf3 {[%clk 0:02:20]} 13. Qxf3 {[%clk 0:02:31]}  Ngxe5 {[%clk 0:01:52]} 14. Qg3 {[%clk 0:02:16]}  a6 {[%clk 0:01:42]} 15. Nd6 {[%clk 0:02:14]}  Qa5+ {[%clk 0:01:40]} 16. Qc3 {[%clk 0:02:13]}  Nb4 {[%clk 0:01:18]} 17. O-O-O {[%clk 0:01:25]}  Nxa2+ {[%clk 0:01:18]} 18. Kd2 {[%clk 0:01:12]}  Nxc3 {[%clk 0:01:18]} 19. bxc3 {[%clk 0:01:12]}  Qxc5 {[%clk 0:01:15]} 0-1


[Site "https://www.chess.com"]

[Event "Titled Tuesday Blitz January 17 Late 2023"]
[White "Petukhov, Dmitry"]
[Black "Stachanczyk, Jacek"]
[WhiteFideId "4142748"]
[BlackFideId "1116657"]
[WhiteElo "2350"]
[BlackElo "2147"]
[Result "0-1"]
[Round "04"]
[TimeControl "180+2"]
[Date "2023.01.17"]
[WhiteClock "0:00:16"]
[BlackClock "0:01:00"]

1. e4 {[%clk 0:02:59]}  c5 {[%clk 0:02:57]} 2. c3 {[%clk 0:02:59]}  d5 {[%clk 0:02:56]} 3. exd5 {[%clk 0:03:00]}  Nf6 {[%clk 0:02:56]} 4. d4 {[%clk 0:03:01]}  cxd4 {[%clk 0:02:54]} 5. cxd4 {[%clk 0:02:57]}  Nxd5 {[%clk 0:02:53]} 6. Nc3 {[%clk 0:02:57]}  Nxc3 {[%clk 0:02:53]} 7. bxc3 {[%clk 0:02:57]}  Qc7 {[%clk 0:02:54]} 8. Bd2 {[%clk 0:02:57]}  e6 {[%clk 0:02:54]} 9. Bd3 {[%clk 0:02:57]}  Bd7 {[%clk 0:02:42]} 10. Nf3 {[%clk 0:02:56]}  Bc6 {[%clk 0:02:43]} 11. O-O {[%clk 0:02:55]}  Nd7 {[%clk 0:02:42]} 12. Re1 {[%clk 0:02:54]}  Bd6 {[%clk 0:02:42]} 13. h3 {[%clk 0:02:54]}  O-O {[%clk 0:02:35]} 14. Qe2 {[%clk 0:02:50]}  Bf4 {[%clk 0:02:29]} 15. c4 {[%clk 0:02:45]}  Bxd2 {[%clk 0:02:28]} 16. Nxd2 {[%clk 0:02:46]}  Rfd8 {[%clk 0:02:17]} 17. d5 {[%clk 0:02:34]}  exd5 {[%clk 0:02:13]} 18. cxd5 {[%clk 0:02:35]}  Bxd5 {[%clk 0:02:08]} 19. Bxh7+ {[%clk 0:02:34]}  Kxh7 {[%clk 0:02:09]} 20. Qh5+ {[%clk 0:02:35]}  Kg8 {[%clk 0:02:09]} 21. Qxd5 {[%clk 0:02:35]}  Nf6 {[%clk 0:02:10]} 22. Qg5 {[%clk 0:02:36]}  Rd5 {[%clk 0:02:08]} 23. Qe3 {[%clk 0:02:18]}  Re8 {[%clk 0:02:07]} 24. Qxe8+ {[%clk 0:01:47]}  Nxe8 {[%clk 0:02:08]} 25. Rxe8+ {[%clk 0:01:47]}  Kh7 {[%clk 0:02:08]} 26. Nf3 {[%clk 0:01:47]}  b5 {[%clk 0:02:04]} 27. Rae1 {[%clk 0:01:46]}  f6 {[%clk 0:01:55]} 28. Nh2 {[%clk 0:01:28]}  Rd2 {[%clk 0:01:51]} 29. Ng4 {[%clk 0:01:28]}  Qc5 {[%clk 0:01:43]} 30. R8e7 {[%clk 0:01:03]}  Kg6 {[%clk 0:01:35]} 31. R7e6 {[%clk 0:00:55]}  Kf7 {[%clk 0:01:29]} 32. R6e3 {[%clk 0:00:45]}  Rxa2 {[%clk 0:01:26]} 33. Rf3 {[%clk 0:00:45]}  Rc2 {[%clk 0:01:16]} 34. Ne5+ {[%clk 0:00:44]}  Kg8 {[%clk 0:01:16]} 35. Nd7 {[%clk 0:00:40]}  Qc7 {[%clk 0:01:10]} 36. Re8+ {[%clk 0:00:22]}  Kf7 {[%clk 0:01:03]} 37. Rf8+ {[%clk 0:00:23]}  Ke7 {[%clk 0:01:04]} 38. Re3+ {[%clk 0:00:23]}  Kxd7 {[%clk 0:01:02]} 39. Rf7+ {[%clk 0:00:23]}  Kc8 {[%clk 0:01:02]} 40. Re8+ {[%clk 0:00:17]}  Kb7 {[%clk 0:01:02]} 41. Rxc7+ {[%clk 0:00:18]}  Rxc7 {[%clk 0:01:01]} 42. h4 {[%clk 0:00:15]}  a5 {[%clk 0:01:01]} 43. Kf1 {[%clk 0:00:16]}  b4 {[%clk 0:01:01]} 44. Ke2 {[%clk 0:00:17]}  Kb6 {[%clk 0:01:01]} 45. g4 {[%clk 0:00:17]}  b3 {[%clk 0:01:01]} 46. g5 {[%clk 0:00:17]}  fxg5 {[%clk 0:01:00]} 47. hxg5 {[%clk 0:00:17]}  b2 {[%clk 0:01:00]} 48. Rb8+ {[%clk 0:00:16]}  Rb7 {[%clk 0:01:00]} 0-1


[Site "https://www.chess.com"]